fUSD/lending_fUSD_20240331
["ID","MTS","AMOUNT","RATE_DAILY","PERIOD"]
[321095723,1711893062372,-289.57561843,0.00079726,120]
[321095724,1711893062397,-289.57561843,0.00079726,120]
[321095725,1711893062419,-289.57561843,0.00079726,120]
[321095726,1711893062441,-289.57561843,0.00079726,120]
[321095727,1711893062463,-289.57561843,0.00079726,120]
[321095728,1711893062488,-289.57561843,0.00079726,120]
[321095729,1711893062506,-290.07,0.00079726,120]
[321095730,1711893062515,-2011.522847,0.000798,60]
[321095731,1711893062525,-186.36687096,0.000799,2]
[321095732,1711893062534,-1343.71,0.00079999,120]
[321095733,1711893062544,-88827.4260171,0.0008,80]
[321095734,1711893062553,-60311.34377526,0.0008,36]
[321095735,1711893062657,-59699.78573326,0.0008,36]
[321095736,1711893062666,-194780.44934099,0.0008,2]
[321095737,1711893062676,-5000.0,0.0008,120]
[321095738,1711893062686,-1317.55258725,0.0008,120]
[321095739,1711893062696,-200.0,0.0008,8]
[321095740,1711893062705,-168.36325793,0.0008,7]
[321095741,1711893062714,-200.0,0.0008,120]
[321095742,1711893062723,-173.1,0.0008,120]
[321095743,1711893062732,-872026.61010236,0.0008,120]
[321095744,1711893069997,200000.0,0.00025,2]
[321095745,1711893070025,28784.26730819,0.00025,2]
[321095746,1711893070050,2550000.0,0.00025,2]
[321095747,1711893070074,8416913.12404222,0.00025,2]
[321095748,1711893070106,500000.0,0.00025,2]
[321095749,1711893070128,1855000.0,0.00025,2]
[321095750,1711893070152,175000.0,0.00025,2]
[321095751,1711893070178,9996210.40483264,0.00025,2]
[321095752,1711893070209,1340171.41862884,0.00025,2]
[321095753,1711893070236,20000.0,0.00025,2]
[321095754,1711893070262,555.0,0.00025,2]
[321095755,1711893070289,5264.0,0.00025,2]
[321095756,1711893070318,11000.0,0.00025,2]
[321095757,1711893070340,3000.0,0.00025,2]
[321095758,1711893070361,3000.0,0.00025,2]
[321095759,1711893070383,3000.0,0.00025,2]
[321095760,1711893070405,3000.0,0.00025,2]
[321095761,1711893070427,3000.0,0.00025,2]
[321095762,1711893070447,3000.0,0.00025,2]
[321095763,1711893070467,3000.0,0.00025,2]
[321095764,1711893070489,3000.0,0.00025,2]
[321095765,1711893070511,3000.0,0.00025,2]
[321095766,1711893070532,3000.0,0.00025,2]
[321095767,1711893070554,9248845.34861242,0.00025,2]
[321095768,1711893072379,150.0,0.000154,2]
[321095769,1711893072401,150.0,0.000154,2]
[321095770,1711893072423,150.0,0.000154,2]
[321095771,1711893072444,150.0,0.000154,2]
[321095772,1711893072465,3556.26278162,0.000154,2]
[321095773,1711893086707,150.0,0.00018,2]
[321095774,1711893086730,287.15461961,0.00018,2]
[321095775,1711893086752,150.0,0.00018,2]
[321095776,1711893092486,2175.23563188,0.0001,2]
[321095778,1711893096951,4302.91906703,0.00011,2]
[321095779,1711893108076,276513.70012092,0.00018,2]
[321095780,1711893115481,1649.9647029,6.94e-05,2]
[321095781,1711893125616,200.0,0.00043639,120]
[321095782,1711893125990,-362.32102287,0.0003491,4]
[321095785,1711893237141,1525746.37444287,0.00025,2]
[321095786,1711893238357,223.94252704,0.00024,2]
[321095787,1711893239737,480.66028579,0.00023998,2]
[321095789,1711893267448,1853.83220971,0.00015,2]
[321095790,1711893269760,42427.5245036,0.00023998,2]
[321095792,1711893284982,-8561.00855286,0.00025085,2]
[321095793,1711893285004,-5521.83104827,0.00025086,2]
[321095794,1711893285026,-198.839376,0.00025087,2]
[321095795,1711893285773,42427.5245036,0.00023998,2]
[321095797,1711893303564,-232.8256194,0.00025084,2]
[321095798,1711893303587,-660.82996111,0.00025084,2]
[321095799,1711893303610,-644.88467648,0.00025084,2]
[321095800,1711893303632,-1924.3580733,0.00025084,2]
[321095801,1711893303655,-3367.95346231,0.00025085,2]
[321095802,1711893303678,-579.1548464,0.00025087,2]
[321095803,1711893303700,-300.0,0.00025089,2]
[321095804,1711893309780,27989.993361,0.00023998,2]
[321095805,1711893309801,1360.34901285,0.00023998,2]
[321095808,1711893312068,920465.35030571,0.00023998,2]
[321095809,1711893320669,758.86249884,0.00023998,2]
[321095810,1711893321227,-661.15181405,0.00029747,2]
[321095811,1711893321248,-221.56306543,0.00029747,2]
[321095812,1711893321268,-3375.04096257,0.00029747,2]
[321095813,1711893321293,-232.8256194,0.00029747,2]
[321095814,1711893321313,-4460.28545604,0.00029748,2]
[321095815,1711893321335,-5521.83104827,0.00029748,2]
[321095816,1711893321360,-180.42214513,0.00029748,2]
[321095817,1711893321381,-206301.87988911,0.00029749,2]
[321095818,1711893328250,938.23449572,0.00023998,2]
[321095819,1711893329185,287.28645962,0.00023998,2]
[321095820,1711893331044,3360.37635281,0.00023998,2]
[321095821,1711893334810,185.05308268,0.00023998,2]
[321095822,1711893344304,224.20800371,0.00024,2]
[321095823,1711893345218,286.60886634,0.00023998,2]
[321095824,1711893348993,241.07267434,0.00023998,2]
[321095825,1711893363181,287.28645962,0.00023998,2]
[321095826,1711893363218,-747.50847691,0.00029738,2]
[321095827,1711893363239,-1000.0,0.00029739,2]
[321095828,1711893363259,-4158.78892519,0.0002974,2]
[321095829,1711893363280,-660.82996111,0.00029747,2]
[321095830,1711893363303,-5084.92196841,0.00029748,2]
[321095831,1711893363323,-549.54940894,0.00029748,2]
[321095832,1711893363345,-4460.28545604,0.00029748,2]
[321095833,1711893363366,-170.12753276,0.00029748,2]
[321095834,1711893363387,-288.94929512,0.00029748,2]
[321095835,1711893363408,-8273.60638274,0.00029749,2]
[321095836,1711893363428,-1679.5848382,0.00029749,2]
[321095837,1711893363448,-47394.69444935,0.0002975,2]
[321095838,1711893363470,-5327.34118858,0.000299,2]
[321095839,1711893363489,-782.24578178,0.00029998,2]
[321095840,1711893363661,-150.94867161,0.00029998,2]
[321095841,1711893363682,-94927.61766326,0.0003,2]
[321095842,1711893368293,224.20800371,0.00024,2]
[321095843,1711893383303,187.91666507,0.00023998,2]
[321095844,1711893386295,223.66185182,0.00024,2]
[321095855,1711893593921,362.22641692,0.00024,2]
[321095856,1711893598325,2455.33346268,0.00024,2]
[321095857,1711893598678,295.41221015,0.00024,2]
[321095858,1711893601033,4865.54805737,0.00024,2]
[321095859,1711893620324,2462.4231398,0.00024,2]
[321095860,1711893623775,360.53539958,0.00024,2]
[321095861,1711893630050,600.0,0.00024,2]
[321095862,1711893647506,2203.70441639,0.00024,2]
[321095863,1711893669532,2198.12963272,0.00024,2]
[321095864,1711893694250,643.60576883,0.00024,2]
[321095865,1711893696056,862.95267147,0.00024,2]
[321095866,1711893697558,155.0,0.00024,2]
[321095867,1711893698464,285.97161265,0.00024,2]
[321095868,1711893701531,2203.70441639,0.00024,2]
[321095869,1711893716054,296.21841041,0.00024,2]
[321095870,1711893717549,756.33852697,0.00024,2]
[321095871,1711893722334,155.0,0.00024,2]
[321095872,1711893738329,234.80183712,0.00024,2]
[321095873,1711893771066,3115.12305813,0.00024,2]
[321095874,1711893806354,2454.07517654,0.00024,2]
[321095875,1711893822345,2251.74041749,0.00024,2]
[321095876,1711893845710,406.87188484,0.0002328,2]
[321095877,1711893859702,405.9163798,0.0002328,2]
[321095878,1711893963408,5303.96,0.00043569,120]
[321095879,1711893963702,5303.96,0.00043569,120]
[321095880,1711893964103,5303.96,0.00043569,120]
[321095881,1711893964420,5303.96,0.00043569,120]
[321095882,1711893964702,5303.96,0.00043569,120]
[321095883,1711893964967,5303.96,0.00043569,120]
[321095884,1711893965236,5303.96,0.00043569,120]
[321095885,1711893965508,5303.96,0.00043569,120]
[321095886,1711893965790,5303.96,0.00043569,120]
[321095887,1711893966062,5303.96,0.00043569,120]
[321095888,1711893966329,5303.96,0.00043569,120]
[321095889,1711893966602,5303.96,0.00043569,120]
[321095890,1711893966894,5303.96,0.00043569,120]
[321095891,1711893967197,5304.16027916,0.00043569,120]
[321095895,1711894038126,-1000.0,0.00025933,2]
[321095897,1711894038146,-807.53840885,0.00025933,2]
[321095899,1711894038166,-277.81051469,0.00025933,2]
[321095901,1711894038186,-179.32336699,0.00025934,2]
[321095902,1711894038205,-2000.0,0.0002603,2]
[321095903,1711894038224,-2982.67703079,0.0002603,2]
[321095904,1711894038244,-325.86657138,0.00026031,2]
[321095905,1711894038263,-262.58617876,0.00026031,2]
[321095906,1711894038281,-3069.61985052,0.00026031,2]
[321095907,1711894038300,-155.0,0.00026032,2]
[321095908,1711894038319,-2344.70888071,0.00026032,2]
[321095909,1711894038338,-155.0,0.00026032,2]
[321095910,1711894038359,-163.77727928,0.00026032,2]
[321095911,1711894038379,-155.0,0.00026032,2]
[321095912,1711894038400,-2140.85923685,0.00026032,2]
[321095913,1711894038420,-1219.87787343,0.00026032,2]
[321095914,1711894038440,-155.0,0.00026032,2]
[321095915,1711894038459,-23249.02226214,0.00026032,2]
[321095916,1711894038480,-1238.73707364,0.00026032,2]
[321095917,1711894038500,-681.07919272,0.00026032,2]
[321095918,1711894038520,-1365.0168853,0.00026032,2]
[321095919,1711894038541,-155.0,0.00026032,2]
[321095920,1711894038560,-406.63337671,0.00026033,2]
[321095921,1711894038581,-855.99764195,0.00026033,2]
[321095922,1711894038600,-160.75125158,0.00026033,2]
[321095923,1711894038620,-166.59674174,0.00026033,2]
[321095924,1711894038640,-155.0,0.00026033,2]
[321095925,1711894038660,-3851.73305848,0.00026033,2]
[321095926,1711894038679,-4387.45310692,0.00026033,2]
[321095927,1711894038698,-4183.64401568,0.00026033,2]
[321095928,1711894038717,-3367.95346231,0.00026033,2]
[321095929,1711894038737,-232.8256194,0.00026034,2]
[321095930,1711894038756,-302.15102248,0.00026034,2]
[321095931,1711894038775,-660.82996111,0.00026034,2]
[321095932,1711894038794,-9151.30032882,0.00026034,2]
[321095933,1711894038813,-203.30973538,0.00026034,2]
[321095934,1711894038832,-206.79371295,0.00026034,2]
[321095935,1711894038852,-781.71630155,0.00026035,2]
[321095936,1711894038872,-250.45882609,0.00026035,2]
[321095937,1711894038891,-2349.20343041,0.00026035,2]
[321095938,1711894038911,-35100.40060604,0.00026036,2]
[321095939,1711894038930,-155.0,0.00026036,2]
[321095940,1711894038949,-2597.77309418,0.00026036,2]
[321095941,1711894038969,-1924.3580733,0.00026037,2]
[321095942,1711894038988,-155.0,0.00026037,2]
[321095943,1711894039008,-536.83953602,0.00026037,2]
[321095944,1711894039027,-446.08802318,0.00026037,2]
[321095945,1711894039047,-5365.57953665,0.00026037,2]
[321095946,1711894039066,-215.06083251,0.00026037,2]
[321095947,1711894039086,-4304.19183795,0.00026037,2]
[321095948,1711894039105,-155.0,0.00026037,2]
[321095949,1711894039124,-5952.1105115,0.00026037,2]
[321095950,1711894039146,-295.27493844,0.00026038,2]
[321095951,1711894039165,-747.50847691,0.00026038,2]
[321095952,1711894039184,-155.0,0.00026038,2]
[321095953,1711894039203,-10569.56760377,0.00026038,2]
[321095954,1711894039222,-669.10431484,0.00026039,2]
[321095955,1711894039242,-217.05941137,0.00026039,2]
[321095956,1711894039262,-1759.13261446,0.00026039,2]
[321095957,1711894039281,-4312.71348977,0.00026039,2]
[321095958,1711894039300,-1767.50813,0.0002604,2]
[321095959,1711894039320,-284.99900998,0.0002607,2]
[321095960,1711894039340,-157.28239816,0.00026168,2]
[321095961,1711894039360,-238.42573997,0.00026168,2]
[321095962,1711894039379,-319.30622196,0.00026168,2]
[321095963,1711894039398,-283.76644657,0.00026169,2]
[321095964,1711894039417,-156.42178709,0.0002617,2]
[321095965,1711894039437,-598.9490416,0.0002617,2]
[321095966,1711894039457,-300.0,0.00026172,2]
[321095967,1711894039477,-150.0,0.00026172,2]
[321095968,1711894039497,-243.0,0.00026176,2]
[321095969,1711894039517,-1301.72,0.00026995,2]
[321095970,1711894039539,-150.99,0.00026995,2]
[321095971,1711894039559,-155.0,0.00027,2]
[321095972,1711894039578,-500.0,0.00027468,2]
[321095973,1711894039597,-151.52,0.00027993,2]
[321095974,1711894039617,-3109.03,0.00028631,2]
[321095975,1711894039636,-176.2,0.00028638,2]
[321095976,1711894039655,-499.99,0.00028638,2]
[321095977,1711894039675,-496.85905532,0.00029447,2]
[321095978,1711894039696,-221.99414891,0.000299,2]
[321095979,1711894039716,-233.63078955,0.00029996,2]
[321095980,1711894039736,-1249.19045626,0.00029997,2]
[321095981,1711894039756,-463.04402775,0.00029997,2]
[321095982,1711894039776,-1239.51049698,0.00029997,2]
[321095983,1711894039796,-500.0,0.00029997,2]
[321095984,1711894039815,-500.0,0.00029997,2]
[321095985,1711894039836,-500.0,0.00029997,2]
[321095986,1711894039856,-500.0,0.00029997,2]
[321095987,1711894039876,-500.0,0.00029997,2]
[321095988,1711894039895,-492.68425528,0.00029997,2]
[321095989,1711894039916,-500.0,0.00029997,2]
[321095990,1711894039936,-500.0,0.00029997,2]
[321095991,1711894039956,-500.0,0.00029997,2]
[321095992,1711894039976,-128515.36289412,0.00029998,2]
[321095995,1711894132252,-777.9942224,0.00025926,2]
[321095996,1711894132272,-530.73136111,0.00025927,2]
[321095997,1711894132293,-235.65999803,0.00025928,2]
[321095998,1711894132313,-716.0,0.00025929,2]
[321095999,1711894132335,-535.49661504,0.00025929,2]
[321096000,1711894132359,-12771.6947917,0.00025931,2]
[321096001,1711894132380,-852.69267637,0.00026776,2]
[321096002,1711894132400,-163.77727928,0.00026776,2]
[321096003,1711894132425,-188.7540932,0.00026776,2]
[321096004,1711894132447,-287.4,0.00026777,2]
[321096005,1711894132467,-187.29944808,0.00026998,2]
[321096006,1711894132487,-788.16082764,0.00026998,2]
[321096007,1711894132507,-1238.73707364,0.00029394,2]
[321096008,1711894132528,-155.0,0.00029394,2]
[321096009,1711894132549,-807.53840885,0.00029394,2]
[321096010,1711894132574,-1365.0168853,0.00029394,2]
[321096011,1711894132594,-536.83953602,0.00029395,2]
[321096012,1711894132613,-5952.1105115,0.00029395,2]
[321096013,1711894132633,-2000.0,0.00029395,2]
[321096014,1711894132655,-4312.71348977,0.00029395,2]
[321096015,1711894132676,-277.81051469,0.00029395,2]
[321096016,1711894132696,-10569.56760377,0.00029395,2]
[321096017,1711894132715,-295.27493844,0.00029395,2]
[321096018,1711894132734,-206.79371295,0.00029396,2]
[321096019,1711894132754,-1219.87787343,0.00029396,2]
[321096020,1711894132773,-2140.85923685,0.00029396,2]
[321096021,1711894132793,-1000.0,0.00029396,2]
[321096022,1711894132813,-1924.3580733,0.00029396,2]
[321096023,1711894132832,-446.08802318,0.00029396,2]
[321096024,1711894133786,-5365.57953665,0.00029396,2]
[321096025,1711894133809,-155.0,0.00029396,2]
[321096026,1711894133830,-155.0,0.00029396,2]
[321096027,1711894133851,-781.71630155,0.00029396,2]
[321096028,1711894133871,-2982.67703079,0.00029397,2]
[321096029,1711894133895,-1759.13261446,0.00029397,2]
[321096030,1711894133915,-4387.45310692,0.00029397,2]
[321096031,1711894133935,-325.86657138,0.00029397,2]
[321096032,1711894133956,-3069.61985052,0.00029397,2]
[321096033,1711894133976,-250.94788659,0.00029698,2]
[321096034,1711894133996,-8502.92423371,0.00029997,2]
[321096035,1711894134017,-6734.23,0.00029997,2]
[321096036,1711894134038,-9744.12526685,0.00029998,2]
[321096037,1711894134059,-361.10221362,0.00029998,2]
[321096038,1711894134080,-229.66414078,0.00029998,2]
[321096039,1711894134099,-268.29906986,0.00029998,2]
[321096040,1711894134119,-155.0,0.00029998,2]
[321096041,1711894134140,-155.72729125,0.00029998,2]
[321096042,1711894134160,-260.7652174,0.00029998,2]
[321096043,1711894134179,-259.73532178,0.00029998,2]
[321096044,1711894134199,-5251.95883984,0.00029998,2]
[321096045,1711894134223,-263.89603387,0.00029998,2]
[321096046,1711894134244,-736.42959233,0.00029998,2]
[321096047,1711894134264,-306.55390812,0.00029998,2]
[321096048,1711894134286,-194.16364172,0.00029998,2]
[321096049,1711894134306,-657.80282332,0.00029998,2]
[321096050,1711894134327,-155.86053798,0.00029998,2]
[321096051,1711894134351,-504.3220634,0.00029998,2]
[321096052,1711894134371,-165.58899834,0.00029998,2]
[321096053,1711894134391,-216.50919866,0.00029998,2]
[321096054,1711894134412,-202.5113604,0.00029998,2]
[321096055,1711894134432,-2346.06465387,0.00029998,2]
[321096056,1711894134453,-668.07655866,0.00029998,2]
[321096057,1711894134474,-4704.44,0.00029998,2]
[321096058,1711894134497,-159.87268318,0.00029998,2]
[321096059,1711894134517,-155.0,0.00029998,2]
[321096060,1711894134536,-21334.50207012,0.00029998,2]
[321096061,1711894134559,-336.27293644,0.00029998,2]
[321096062,1711894134579,-406.85279138,0.00029998,2]
[321096063,1711894134600,-215.18423585,0.00029998,2]
[321096064,1711894134619,-232.5270667,0.00029998,2]
[321096065,1711894134644,-291.41749408,0.00029998,2]
[321096066,1711894134665,-302.24204935,0.00029998,2]
[321096067,1711894134684,-536.2865734,0.00029998,2]
[321096068,1711894134704,-406.19479477,0.00029998,2]
[321096069,1711894134724,-155.0,0.00029999,2]
[321096070,1711894134746,-155.0,0.00029999,2]
[321096071,1711894134766,-3277.95538953,0.00029999,2]
[321096072,1711894134786,-4178.30557584,0.00029999,2]
[321096073,1711894134805,-2883.36909996,0.0003,2]
[321096074,1711894134826,-7652.40609167,0.0003,2]
[321096075,1711894134845,-605.97477837,0.0003,4]
[321096076,1711894134866,-10880.6453102,0.0003,4]
[321096077,1711894192471,-166.95219116,0.00029998,2]
[321096078,1711894192492,-235.65999803,0.00029998,2]
[321096079,1711894192512,-277.81051469,0.00029998,2]
[321096080,1711894192531,-8700.39154697,0.00029998,2]
[321096081,1711894192551,-489.18574915,0.00029998,2]
[321096085,1711894202825,2209.98,0.00043442,120]
[321096086,1711894203089,2209.98,0.00043442,120]
[321096087,1711894203798,2209.98,0.00043442,120]
[321096088,1711894204106,2209.98,0.00043442,120]
[321096089,1711894204379,2209.98,0.00043442,120]
[321096090,1711894205003,2209.98,0.00043442,120]
[321096091,1711894205280,2209.98,0.00043442,120]
[321096092,1711894205660,2209.98,0.00043442,120]
[321096093,1711894205946,2209.98,0.00043442,120]
[321096094,1711894206267,2209.98,0.00043442,120]
[321096095,1711894206574,2209.98,0.00043442,120]
[321096096,1711894206855,2209.98,0.00043442,120]
[321096097,1711894207272,2210.06,0.00043442,120]
[321096149,1711894232128,-41.54561196,0.00029998,2]
[321096150,1711894232138,-325.86657138,0.00029998,2]
[321096151,1711894232147,-1153.74842636,0.00029998,2]
[321096152,1711894232161,-262.60713799,0.00029998,2]
[321096153,1711894232170,-352.08885388,0.00029998,2]
[321096154,1711894232179,-155.80461378,0.00029999,2]
[321096155,1711894232188,-803.41191815,0.00029999,2]
[321096156,1711894232197,-283.44262237,0.00029999,2]
[321096157,1711894232206,-1365.0168853,0.00029999,2]
[321096158,1711894232215,-239.78151696,0.00029999,2]
[321096159,1711894232291,-286.16,0.00029999,2]
[321096160,1711894232303,-1662.78805437,0.00029999,2]
[321096161,1711894232312,-5080.17933399,0.00029999,2]
[321096162,1711894232321,-323.03261164,0.00029999,2]
[321096201,1711894238003,-76.96738836,0.00029999,2]
[321096203,1711894238012,-781.71630155,0.00029999,2]
[321096205,1711894238021,-1092.09592029,0.0003,4]
[321096206,1711894238031,-477.53693518,0.0003,4]
[321096207,1711894238042,-7161.09999999,0.0003,4]
[321096208,1711894238053,-67698.66328556,0.0003,4]
[321096209,1711894238064,-477.46048853,0.0003,4]
[321096210,1711894238083,-262.65011809,0.0003,4]
[321096211,1711894238094,-3520.58105885,0.0003,4]
[321096212,1711894238105,-2453.07925518,0.0003,4]
[321096213,1711894238116,-313.27,0.0003,4]
[321096214,1711894238135,-1340.01178555,0.0003,4]
[321096215,1711894238146,-8993.23829413,0.0003,4]
[321096216,1711894238157,-820.17749397,0.0003,4]
[321096218,1711894238169,-651.59,0.0003,4]
[321096219,1711894238181,-7087.50382824,0.0003,4]
[321096220,1711894238192,-2805.1761556,0.0003,4]
[321096222,1711894238201,-250.0,0.00030055,2]
[321096223,1711894238210,-221.99414889,0.00030623,2]
[321096224,1711894238220,-221.99414889,0.00031345,2]
[321096225,1711894238230,-221.99414889,0.00032068,2]
[321096226,1711894238239,-221.99414889,0.00032791,2]
[321096227,1711894238250,-350.0,0.00033,3]
[321096228,1711894238259,-1500.0,0.00033268,2]
[321096229,1711894238268,-384.9,0.00033268,2]
[321096230,1711894238277,-150.99,0.00033268,10]
[321096231,1711894238286,-1741.25,0.00033268,2]
[321096232,1711894238295,-286.46,0.00033474,2]
[321096233,1711894238304,-221.99414889,0.00033514,2]
[321096234,1711894238313,-498.87235731,0.00033572,4]
[321096235,1711894238325,-13702.08219669,0.00033572,4]
[321096236,1711894238334,-2949.12484749,0.00033572,4]
[321096237,1711894238344,-2845.30786429,0.00033572,4]
[321096238,1711894238354,-150.0,0.00033572,3]
[321096239,1711894238363,-11948.95,0.00033573,2]
[321096240,1711894238371,-1230.65213571,0.00033794,2]
[321096241,1711894238383,-621.76786429,0.00033794,2]
[321096242,1711894238392,-221.99414889,0.00034236,2]
[321096243,1711894238401,-132.08267065,0.00034655,2]
[321096245,1711894238471,-35.36732935,0.00034655,2]
[321096246,1711894238480,-1000.0,0.00034784,2]
[321096247,1711894238491,-1000.0,0.00034958,4]
[321096248,1711894238500,-66.32121625,0.00034958,4]
[321096249,1711894238511,-88.67878375,0.00034958,4]
[321096250,1711894238520,-221.99414889,0.00034959,2]
[321096251,1711894238529,-400.0,0.00035,3]
[321096252,1711894238539,-1121.69,0.00035036,2]
[321096253,1711894238549,-500.0,0.00035451,2]
[321096254,1711894238559,-192.56190972,0.00035549,4]
[321096255,1711894238569,-159.13,0.0003555,2]
[321096257,1711894238580,-2196.43269686,0.00035643,4]
[321096259,1711894238592,-5012.59931015,0.00035643,4]
[321096261,1711894238601,-800.0,0.00035644,2]
[321096263,1711894238611,-400.0,0.00035644,2]
[321096265,1711894238621,-741.08,0.00035646,2]
[321096266,1711894238630,-217.31,0.00035648,2]
[321096268,1711894238639,-741.08,0.00035656,2]
[321096269,1711894238648,-217.31,0.00035657,2]
[321096270,1711894238658,-741.08,0.00035665,2]
[321096271,1711894238668,-217.31,0.00035666,2]
[321096272,1711894238676,-741.08,0.00035674,2]
[321096273,1711894238685,-217.31,0.00035676,2]
[321096274,1711894238694,-221.99414889,0.00035682,2]
[321096275,1711894238703,-741.08,0.00035684,2]
[321096276,1711894238713,-217.31,0.00035685,2]
[321096277,1711894238722,-741.08,0.00035693,2]
[321096278,1711894238731,-217.31,0.00035695,2]
[321096279,1711894238741,-741.08,0.00035702,2]
[321096280,1711894238751,-217.31,0.00035704,2]
[321096281,1711894238760,-741.08,0.00035712,2]
[321096282,1711894238770,-115.59654096,0.00035713,2]
[321096283,1711894238782,-101.71345904,0.00035713,2]
[321096284,1711894238791,-162.28,0.00035716,2]
[321096285,1711894238800,-741.08,0.00035721,2]
[321096286,1711894238810,-217.31,0.00035723,2]
[321096287,1711894238820,-741.08,0.00035731,2]
[321096288,1711894238830,-217.31,0.00035732,2]
[321096289,1711894238841,-286.46,0.00035738,2]
[321096290,1711894238855,-741.08,0.0003574,2]
[321096291,1711894238865,-217.31,0.00035741,2]
[321096292,1711894238875,-741.08,0.00035749,2]
[321096293,1711894238886,-217.31,0.00035751,2]
[321096294,1711894238895,-741.08,0.00035759,2]
[321096295,1711894238906,-217.31,0.0003576,2]
[321096296,1711894238918,-741.08,0.00035768,2]
[321096297,1711894238929,-217.31,0.00035769,2]
[321096298,1711894238940,-741.08,0.00035777,2]
[321096299,1711894238951,-217.31,0.00035779,2]
[321096300,1711894238961,-11425.99915394,0.00035785,4]
[321096301,1711894238971,-155.0,0.00035785,4]
[321096302,1711894238981,-1240.64379315,0.00035785,4]
[321096303,1711894238991,-499.18713948,0.00035785,15]
[321096304,1711894239001,-155.0,0.00035785,4]
[321096305,1711894239011,-156.42178709,0.00035785,4]
[321096306,1711894239022,-155.0,0.00035785,4]
[321096307,1711894239032,-2347.63404214,0.00035786,4]
[321096308,1711894239043,-216.9117649,0.00035786,4]
[321096309,1711894239054,-155.0,0.00035786,4]
[321096310,1711894239064,-741.08,0.00035787,2]
[321096311,1711894239074,-217.31,0.00035788,2]
[321096312,1711894239085,-741.08,0.00035796,2]
[321096313,1711894239095,-217.31,0.00035798,2]
[321096314,1711894239107,-741.08,0.00035806,2]
[321096315,1711894239118,-217.31,0.00035807,2]
[321096316,1711894239128,-741.08,0.00035815,2]
[321096317,1711894239138,-217.31,0.00035816,2]
[321096318,1711894239149,-741.08,0.00035824,2]
[321096319,1711894239160,-217.31,0.00035826,2]
[321096320,1711894239170,-394.02003897,0.00035988,2]
[321096321,1711894239181,-6577.55,0.00035988,2]
[321096322,1711894239190,-360.49,0.00035988,2]
[321096323,1711894239199,-162.28,0.00036027,2]
[321096324,1711894239209,-283.23,0.00036082,2]
[321096325,1711894239219,-3987.46,0.00036096,2]
[321096326,1711894239230,-162.28,0.00036337,2]
[321096327,1711894239240,-221.99414889,0.00036405,2]
[321096328,1711894239250,-605.97477837,0.00036561,4]
[321096329,1711894239261,-396.72256604,0.00036561,4]
[321096330,1711894239271,-167.45,0.00036562,2]
[321096331,1711894239281,-162.28,0.00036647,2]
[321096332,1711894239290,-162.28,0.00036957,2]
[321096333,1711894239301,-1638.99138464,0.00037101,4]
[321096334,1711894239311,-2000.0,0.00037101,2]
[321096335,1711894239321,-322.02239215,0.00037102,4]
[321096336,1711894239331,-1140.0,0.00037102,4]
[321096337,1711894239341,-221.99414889,0.00037127,2]
[321096338,1711894239350,-1380.03,0.00037145,2]
[321096339,1711894239359,-36548.1408198,0.00037227,2]
[321096340,1711894239412,-15.6411309,0.00037227,2]
[321096341,1711894239426,-337.11748986,0.00037227,2]
[321096342,1711894239445,-34708.95231921,0.00037227,2]
[321096343,1711894239457,-2489.90962727,0.00037227,2]
[321096344,1711894239466,-230.11483414,0.00037228,4]
[321096345,1711894239475,-276.74499683,0.00037228,4]
[321096346,1711894239485,-10461.55,0.00037229,2]
[321096347,1711894239494,-162.28,0.00037267,2]
[321096348,1711894239503,-200.0,0.00037363,2]
[321096349,1711894239513,-162.28,0.00037578,2]
[321096350,1711894239522,-221.99414889,0.0003785,2]
[321096351,1711894239532,-155.0,0.00038,4]